[Event "Titled Tuesday Blitz January 31 Late 2023"]
[White "Kohler, Aran"]
[Black "Mortazavi, Ali"]
[WhiteFideId "1002856"]
[BlackFideId "401323"]
[WhiteElo "2010"]
[BlackElo "2333"]
[Result "0-1"]
[Round "04"]
[TimeControl "180+2"]
[Date "2023.01.31"]
[WhiteClock "0:00:06"]
[BlackClock "0:00:09"]

1. Nf3 {[%clk 0:02:59]}  Nf6 {[%clk 0:02:59]} 2. d4 {[%clk 0:02:59]}  g6 {[%clk 0:03:00]} 3. Bg5 {[%clk 0:02:58]}  Bg7 {[%clk 0:03:00]} 4. Nbd2 {[%clk 0:02:59]}  O-O {[%clk 0:03:00]} 5. e3 {[%clk 0:02:59]}  d6 {[%clk 0:03:00]} 6. Bd3 {[%clk 0:02:59]}  c5 {[%clk 0:03:00]} 7. c3 {[%clk 0:02:59]}  Be6 {[%clk 0:03:01]} 8. h4 {[%clk 0:02:58]}  Qb6 {[%clk 0:02:45]} 9. h5 {[%clk 0:02:52]}  Qxb2 {[%clk 0:02:40]} 10. hxg6 {[%clk 0:02:50]}  fxg6 {[%clk 0:02:31]} 11. Rc1 {[%clk 0:02:48]}  cxd4 {[%clk 0:02:02]} 12. cxd4 {[%clk 0:02:32]}  Qxa2 {[%clk 0:02:01]} 13. Ra1 {[%clk 0:02:03]}  Qb2 {[%clk 0:02:00]} 14. Rb1 {[%clk 0:02:01]}  Qc3 {[%clk 0:01:58]} 15. Bxf6 {[%clk 0:01:53]}  Bxf6 {[%clk 0:01:56]} 16. Ke2 {[%clk 0:01:51]}  d5 {[%clk 0:01:29]} 17. Rxb7 {[%clk 0:01:43]}  Qc8 {[%clk 0:01:12]} 18. Qb1 {[%clk 0:01:43]}  Nc6 {[%clk 0:01:12]} 19. Bxg6 {[%clk 0:01:38]}  h6 {[%clk 0:00:29]} 20. Bh7+ {[%clk 0:01:28]}  Kh8 {[%clk 0:00:29]} 21. Rxh6 {[%clk 0:01:26]}  Bg7 {[%clk 0:00:23]} 22. Rh1 {[%clk 0:01:15]}  Rf6 {[%clk 0:00:19]} 23. Ng5 {[%clk 0:00:58]}  Bh6 {[%clk 0:00:13]} 24. Ndf3 {[%clk 0:00:50]}  Rb8 {[%clk 0:00:11]} 25. Rxb8 {[%clk 0:00:39]}  Qxb8 {[%clk 0:00:12]} 26. Qc2 {[%clk 0:00:33]}  Qb5+ {[%clk 0:00:08]} 27. Bd3 {[%clk 0:00:30]}  Nb4 {[%clk 0:00:08]} 28. Qb1 {[%clk 0:00:22]}  Qxd3+ {[%clk 0:00:08]} 29. Qxd3 {[%clk 0:00:22]}  Nxd3 {[%clk 0:00:08]} 30. Kxd3 {[%clk 0:00:23]}  Bf5+ {[%clk 0:00:09]} 31. Kd2 {[%clk 0:00:21]}  Kg7 {[%clk 0:00:09]} 32. Ra1 {[%clk 0:00:19]}  a6 {[%clk 0:00:09]} 33. Ra5 {[%clk 0:00:17]}  Rc6 {[%clk 0:00:09]} 34. Kd1 {[%clk 0:00:12]}  Kf6 {[%clk 0:00:09]} 35. Nh3 {[%clk 0:00:11]}  e6 {[%clk 0:00:09]} 36. Nhg1 {[%clk 0:00:11]}  Bf8 {[%clk 0:00:10]} 37. Ne2 {[%clk 0:00:10]}  Rb6 {[%clk 0:00:09]} 38. Nc3 {[%clk 0:00:09]}  Bb4 {[%clk 0:00:09]} 39. Nxd5+ {[%clk 0:00:09]}  exd5 {[%clk 0:00:08]} 40. Rxd5 {[%clk 0:00:10]}  a5 {[%clk 0:00:09]} 41. Nd2 {[%clk 0:00:07]}  a4 {[%clk 0:00:09]} 42. Nc4 {[%clk 0:00:06]}  Rc6 {[%clk 0:00:09]} 0-1


[Site "https://www.chess.com"]

[Event "Titled Tuesday Blitz January 31 Late 2023"]
[White "Drnovsek, Gal"]
[Black "Gutkin, Ilya"]
[WhiteFideId "14607077"]
[BlackFideId "16203470"]
[WhiteElo "2397"]
[BlackElo "2273"]
[Result "0-1"]
[Round "04"]
[TimeControl "180+2"]
[Date "2023.01.31"]
[WhiteClock "0:00:18"]
[BlackClock "0:00:10"]

1. e4 {[%clk 0:03:00]}  c5 {[%clk 0:03:00]} 2. c3 {[%clk 0:03:00]}  e6 {[%clk 0:02:59]} 3. d4 {[%clk 0:03:00]}  d5 {[%clk 0:02:59]} 4. exd5 {[%clk 0:03:01]}  exd5 {[%clk 0:03:00]} 5. Nf3 {[%clk 0:03:02]}  Nf6 {[%clk 0:02:59]} 6. Bb5+ {[%clk 0:03:02]}  Nc6 {[%clk 0:02:59]} 7. O-O {[%clk 0:03:01]}  Be7 {[%clk 0:02:59]} 8. dxc5 {[%clk 0:03:00]}  Bxc5 {[%clk 0:02:58]} 9. Nbd2 {[%clk 0:03:00]}  O-O {[%clk 0:02:58]} 10. Nb3 {[%clk 0:03:00]}  Bb6 {[%clk 0:02:57]} 11. Re1 {[%clk 0:02:55]}  Bg4 {[%clk 0:02:43]} 12. Be3 {[%clk 0:02:51]}  Re8 {[%clk 0:02:31]} 13. Bxb6 {[%clk 0:02:33]}  Qxb6 {[%clk 0:02:32]} 14. Rxe8+ {[%clk 0:02:28]}  Rxe8 {[%clk 0:02:33]} 15. Bd3 {[%clk 0:02:28]}  Ne5 {[%clk 0:02:21]} 16. Be2 {[%clk 0:02:20]}  Ne4 {[%clk 0:02:08]} 17. Nbd4 {[%clk 0:02:12]}  Qxb2 {[%clk 0:02:03]} 18. Rb1 {[%clk 0:02:03]}  Qxa2 {[%clk 0:01:55]} 19. Nxe5 {[%clk 0:01:56]}  Nxc3 {[%clk 0:01:49]} 20. Ra1 {[%clk 0:00:43]}  Nxd1 {[%clk 0:01:36]} 21. Rxa2 {[%clk 0:00:42]}  Rxe5 {[%clk 0:01:16]} 22. f3 {[%clk 0:00:41]}  Nc3 {[%clk 0:01:11]} 23. Rxa7 {[%clk 0:00:41]}  Nxe2+ {[%clk 0:01:08]} 24. Nxe2 {[%clk 0:00:40]}  Bc8 {[%clk 0:01:04]} 25. Ra8 {[%clk 0:00:36]}  Re8 {[%clk 0:01:02]} 26. Nd4 {[%clk 0:00:37]}  Bd7 {[%clk 0:01:01]} 27. Ra7 {[%clk 0:00:33]}  Bc6 {[%clk 0:01:00]} 28. Kf2 {[%clk 0:00:33]}  g6 {[%clk 0:00:59]} 29. g4 {[%clk 0:00:33]}  Kg7 {[%clk 0:00:58]} 30. h3 {[%clk 0:00:33]}  Kf6 {[%clk 0:00:57]} 31. Ra1 {[%clk 0:00:30]}  Re7 {[%clk 0:00:52]} 32. Rb1 {[%clk 0:00:29]}  Ke5 {[%clk 0:00:50]} 33. Rb4 {[%clk 0:00:27]}  Kd6 {[%clk 0:00:48]} 34. g5 {[%clk 0:00:26]}  Kc5 {[%clk 0:00:44]} 35. Nc2 {[%clk 0:00:25]}  b5 {[%clk 0:00:35]} 36. Rb1 {[%clk 0:00:21]}  d4 {[%clk 0:00:21]} 37. Rc1 {[%clk 0:00:22]}  d3 {[%clk 0:00:17]} 38. Ne3+ {[%clk 0:00:17]}  Kb6 {[%clk 0:00:17]} 39. Rc3 {[%clk 0:00:16]}  Rd7 {[%clk 0:00:16]} 40. Ke1 {[%clk 0:00:17]}  d2+ {[%clk 0:00:15]} 41. Ke2 {[%clk 0:00:17]}  b4 {[%clk 0:00:14]} 42. Rc4 {[%clk 0:00:17]}  Bb5 {[%clk 0:00:14]} 43. Kf2 {[%clk 0:00:12]}  Bxc4 {[%clk 0:00:12]} 44. Kg3 {[%clk 0:00:12]}  d1=Q {[%clk 0:00:11]} 45. Nxd1 {[%clk 0:00:13]}  Rxd1 {[%clk 0:00:11]} 46. Kf4 {[%clk 0:00:14]}  b3 {[%clk 0:00:11]} 47. Ke5 {[%clk 0:00:15]}  b2 {[%clk 0:00:12]} 48. f4 {[%clk 0:00:16]}  b1=Q {[%clk 0:00:13]} 49. Kf6 {[%clk 0:00:16]}  Qf5+ {[%clk 0:00:13]} 50. Kg7 {[%clk 0:00:17]}  f6 {[%clk 0:00:12]} 51. h4 {[%clk 0:00:18]}  Rd7+ {[%clk 0:00:11]} 52. Kh6 {[%clk 0:00:18]}  fxg5 {[%clk 0:00:10]} 53. hxg5 {[%clk 0:00:18]}  Qh3# {[%clk 0:00:10]} 0-1


[Site "https://www.chess.com"]

[Event "Titled Tuesday Blitz January 31 Late 2023"]
[White "Sailer, Mike"]
[Black "Davidson, Kevin"]
[WhiteFideId "2012901"]
[BlackFideId "2056810"]
[WhiteElo "2109"]
[BlackElo "2154"]
[Result "0-1"]
[Round "04"]
[TimeControl "180+2"]
[Date "2023.01.31"]
[WhiteClock "0:00:07"]
[BlackClock "0:00:03"]

1. d4 {[%clk 0:02:59]}  Nf6 {[%clk 0:02:59]} 2. Nf3 {[%clk 0:02:55]}  g6 {[%clk 0:02:58]} 3. Bf4 {[%clk 0:02:55]}  Bg7 {[%clk 0:02:59]} 4. e3 {[%clk 0:02:53]}  d6 {[%clk 0:02:59]} 5. Be2 {[%clk 0:02:52]}  O-O {[%clk 0:02:58]} 6. O-O {[%clk 0:02:53]}  Nfd7 {[%clk 0:02:54]} 7. h3 {[%clk 0:02:52]}  h6 {[%clk 0:02:55]} 8. c4 {[%clk 0:02:45]}  e5 {[%clk 0:02:55]} 9. Bh2 {[%clk 0:02:45]}  Nc6 {[%clk 0:02:54]} 10. Nc3 {[%clk 0:02:44]}  f5 {[%clk 0:02:54]} 11. Rb1 {[%clk 0:02:36]}  g5 {[%clk 0:02:53]} 12. b4 {[%clk 0:02:36]}  f4 {[%clk 0:02:52]} 13. dxe5 {[%clk 0:02:33]}  dxe5 {[%clk 0:02:49]} 14. exf4 {[%clk 0:02:31]}  exf4 {[%clk 0:02:49]} 15. Nd5 {[%clk 0:02:28]}  Nce5 {[%clk 0:02:42]} 16. Nd4 {[%clk 0:02:09]}  Nf6 {[%clk 0:02:31]} 17. Nxf6+ {[%clk 0:02:05]}  Qxf6 {[%clk 0:02:30]} 18. Nf3 {[%clk 0:01:59]}  Bf5 {[%clk 0:02:13]} 19. Rc1 {[%clk 0:01:55]}  Rfd8 {[%clk 0:02:05]} 20. Qb3 {[%clk 0:01:52]}  Nxf3+ {[%clk 0:01:40]} 21. Bxf3 {[%clk 0:01:51]}  Rd3 {[%clk 0:01:41]} 22. Qa4 {[%clk 0:01:43]}  c6 {[%clk 0:01:32]} 23. Bg4 {[%clk 0:01:32]}  Bxg4 {[%clk 0:01:19]} 24. hxg4 {[%clk 0:01:32]}  f3 {[%clk 0:01:08]} 25. Rfd1 {[%clk 0:01:04]}  Rxd1+ {[%clk 0:00:48]} 26. Rxd1 {[%clk 0:01:02]}  fxg2 {[%clk 0:00:45]} 27. Kxg2 {[%clk 0:00:43]}  Rf8 {[%clk 0:00:44]} 28. Qc2 {[%clk 0:00:38]}  Qf3+ {[%clk 0:00:43]} 29. Kg1 {[%clk 0:00:34]}  Qxg4+ {[%clk 0:00:42]} 30. Bg3 {[%clk 0:00:25]}  Be5 {[%clk 0:00:31]} 31. Qd3 {[%clk 0:00:15]}  Bg7 {[%clk 0:00:17]} 32. Kh2 {[%clk 0:00:09]}  Qf5 {[%clk 0:00:10]} 33. Qxf5 {[%clk 0:00:06]}  Rxf5 {[%clk 0:00:11]} 34. Rd7 {[%clk 0:00:06]}  Rf7 {[%clk 0:00:11]} 35. Rd8+ {[%clk 0:00:06]}  Kh7 {[%clk 0:00:11]} 36. Kg2 {[%clk 0:00:07]}  Kg6 {[%clk 0:00:09]} 37. Rd6+ {[%clk 0:00:06]}  Rf6 {[%clk 0:00:08]} 38. Rd7 {[%clk 0:00:07]}  Rf7 {[%clk 0:00:08]} 39. Rd6+ {[%clk 0:00:07]}  Kf5 {[%clk 0:00:08]} 40. b5 {[%clk 0:00:06]}  cxb5 {[%clk 0:00:07]} 41. cxb5 {[%clk 0:00:06]}  h5 {[%clk 0:00:05]} 42. Rd8 {[%clk 0:00:05]}  Be5 {[%clk 0:00:03]} 43. Bxe5 {[%clk 0:00:05]}  Kxe5 {[%clk 0:00:02]} 44. Rc8 {[%clk 0:00:04]}  Kd5 {[%clk 0:00:01]} 45. Rg8 {[%clk 0:00:04]}  g4 {[%clk 0:00:01]} 46. Rg5+ {[%clk 0:00:03]}  Kc4 {[%clk 0:00:02]} 47. Rxh5 {[%clk 0:00:04]}  Rg7 {[%clk 0:00:01]} 48. Rf5 {[%clk 0:00:04]}  Kb4 {[%clk 0:00:01]} 49. Re5 {[%clk 0:00:04]}  Ka3 {[%clk 0:00:02]} 50. Re2 {[%clk 0:00:04]}  Ka4 {[%clk 0:00:02]} 51. Re4+ {[%clk 0:00:04]}  Ka3 {[%clk 0:00:02]} 52. Re2 {[%clk 0:00:04]}  Rg5 {[%clk 0:00:02]} 53. Re3+ {[%clk 0:00:03]}  Kxa2 {[%clk 0:00:02]} 54. Re2+ {[%clk 0:00:03]}  Ka3 {[%clk 0:00:02]} 55. Re1 {[%clk 0:00:04]}  Kb4 {[%clk 0:00:02]} 56. Rb1+ {[%clk 0:00:04]}  Ka5 {[%clk 0:00:02]} 57. Ra1+ {[%clk 0:00:04]}  Kb6 {[%clk 0:00:03]} 58. Ra4 {[%clk 0:00:04]}  Rxb5 {[%clk 0:00:02]} 59. Rxg4 {[%clk 0:00:05]}  a5 {[%clk 0:00:03]} 60. Rg6+ {[%clk 0:00:05]}  Ka7 {[%clk 0:00:02]} 61. f4 {[%clk 0:00:05]}  a4 {[%clk 0:00:02]} 62. Rg3 {[%clk 0:00:05]}  Ra5 {[%clk 0:00:02]} 63. Ra3 {[%clk 0:00:06]}  b5 {[%clk 0:00:03]} 64. f5 {[%clk 0:00:06]}  b4 {[%clk 0:00:03]} 65. f6 {[%clk 0:00:06]}  bxa3 {[%clk 0:00:03]} 66. f7 {[%clk 0:00:07]}  Rf5 {[%clk 0:00:03]} 0-1


[Site "https://www.chess.com"]

[Event "Titled Tuesday Blitz January 31 Late 2023"]
[White "Lopez Del Alamo, Antonio"]
[Black "Desideri, Ricardo Maruchi"]
[WhiteFideId "2227339"]
[BlackFideId "2110440"]
[WhiteElo "2280"]
[BlackElo "1959"]
[Result "1-0"]
[Round "04"]
[TimeControl "180+2"]
[Date "2023.01.31"]
[WhiteClock "0:01:06"]
[BlackClock "0:00:41"]

1. e4 {[%clk 0:02:58]}  c5 {[%clk 0:02:55]} 2. Nf3 {[%clk 0:02:58]}  d6 {[%clk 0:02:55]} 3. d4 {[%clk 0:02:57]}  cxd4 {[%clk 0:02:55]} 4. Nxd4 {[%clk 0:02:58]}  Nf6 {[%clk 0:02:55]} 5. Nc3 {[%clk 0:02:59]}  a6 {[%clk 0:02:55]} 6. Be2 {[%clk 0:03:00]}  e6 {[%clk 0:02:54]} 7. O-O {[%clk 0:02:59]}  b5 {[%clk 0:02:54]} 8. Bf3 {[%clk 0:02:46]}  Ra7 {[%clk 0:02:54]} 9. Be3 {[%clk 0:02:38]}  Rc7 {[%clk 0:02:53]} 10. a3 {[%clk 0:02:34]}  Nbd7 {[%clk 0:02:50]} 11. g3 {[%clk 0:02:30]}  Bb7 {[%clk 0:02:50]} 12. Bg2 {[%clk 0:02:30]}  Be7 {[%clk 0:02:49]} 13. f4 {[%clk 0:02:27]}  Qc8 {[%clk 0:02:43]} 14. h3 {[%clk 0:02:23]}  O-O {[%clk 0:02:42]} 15. Qd3 {[%clk 0:02:20]}  Nc5 {[%clk 0:02:39]} 16. Qe2 {[%clk 0:02:20]}  Ncxe4 {[%clk 0:02:37]} 17. Nxe4 {[%clk 0:02:21]}  Nxe4 {[%clk 0:02:36]} 18. Bxe4 {[%clk 0:02:19]}  Bxe4 {[%clk 0:02:36]} 19. c3 {[%clk 0:02:20]}  e5 {[%clk 0:02:28]} 20. Nf3 {[%clk 0:02:15]}  Qxh3 {[%clk 0:02:26]} 21. Bf2 {[%clk 0:02:14]}  Bxf3 {[%clk 0:02:24]} 22. Qxf3 {[%clk 0:02:14]}  exf4 {[%clk 0:02:09]} 23. Qxf4 {[%clk 0:02:02]}  Rc4 {[%clk 0:02:06]} 24. Qf3 {[%clk 0:01:52]}  Bf6 {[%clk 0:01:54]} 25. Be3 {[%clk 0:01:43]}  Rg4 {[%clk 0:01:46]} 26. Bf4 {[%clk 0:01:33]}  Be5 {[%clk 0:01:45]} 27. Bxe5 {[%clk 0:01:23]}  dxe5 {[%clk 0:01:44]} 28. Kf2 {[%clk 0:01:20]}  Rd8 {[%clk 0:01:27]} 29. Rad1 {[%clk 0:01:11]}  Qh2+ {[%clk 0:01:24]} 30. Ke3 {[%clk 0:01:09]}  Qh6+ {[%clk 0:01:16]} 31. Ke2 {[%clk 0:01:07]}  Qh2+ {[%clk 0:00:41]} 32. Rf2 {[%clk 0:01:06]} 1-0


[Site "https://www.chess.com"]

[Event "Titled Tuesday Blitz January 31 Late 2023"]
[White "Aarav Dengla"]
[Black "Gerbelli Neto, Eduardo"]
[WhiteFideId "45059756"]
[BlackFideId "2103281"]
[WhiteElo "2343"]
[BlackElo "2114"]
[Result "0-1"]
[Round "04"]
[TimeControl "180+2"]
[Date "2023.01.31"]
[WhiteClock "0:00:06"]
[BlackClock "0:00:17"]

1. e4 {[%clk 0:03:00]}  e5 {[%clk 0:02:59]} 2. Nf3 {[%clk 0:03:00]}  Nc6 {[%clk 0:03:00]} 3. Bb5 {[%clk 0:03:00]}  a6 {[%clk 0:03:00]} 4. Ba4 {[%clk 0:03:00]}  d6 {[%clk 0:03:00]} 5. c3 {[%clk 0:03:00]}  f5 {[%clk 0:02:59]} 6. d3 {[%clk 0:02:59]}  Be7 {[%clk 0:02:58]} 7. O-O {[%clk 0:02:58]}  Nf6 {[%clk 0:02:58]} 8. exf5 {[%clk 0:02:57]}  Bxf5 {[%clk 0:02:57]} 9. d4 {[%clk 0:02:58]}  e4 {[%clk 0:02:57]} 10. d5 {[%clk 0:02:58]}  exf3 {[%clk 0:02:49]} 11. Qxf3 {[%clk 0:02:52]}  Be4 {[%clk 0:02:44]} 12. Qg3 {[%clk 0:02:50]}  Bxd5 {[%clk 0:02:43]} 13. Be3 {[%clk 0:02:39]}  O-O {[%clk 0:02:36]} 14. Nd2 {[%clk 0:02:39]}  Ne4 {[%clk 0:02:19]} 15. Nxe4 {[%clk 0:02:33]}  Bxe4 {[%clk 0:02:20]} 16. Rad1 {[%clk 0:02:32]}  Bh4 {[%clk 0:02:07]} 17. Qg4 {[%clk 0:02:28]}  Bf5 {[%clk 0:01:50]} 18. Qc4+ {[%clk 0:02:26]}  Kh8 {[%clk 0:01:50]} 19. Bxc6 {[%clk 0:02:22]}  bxc6 {[%clk 0:01:50]} 20. Qxc6 {[%clk 0:02:22]}  Qe7 {[%clk 0:01:40]} 21. Rde1 {[%clk 0:02:06]}  Be4 {[%clk 0:01:35]} 22. Qc4 {[%clk 0:02:01]}  d5 {[%clk 0:01:32]} 23. Qe2 {[%clk 0:01:53]}  Qf7 {[%clk 0:01:21]} 24. Rd1 {[%clk 0:01:47]}  c6 {[%clk 0:01:20]} 25. f3 {[%clk 0:01:45]}  Bg6 {[%clk 0:01:14]} 26. Bc5 {[%clk 0:01:36]}  Rfe8 {[%clk 0:01:14]} 27. Qd2 {[%clk 0:01:36]}  Be7 {[%clk 0:01:09]} 28. Bf2 {[%clk 0:01:30]}  Rab8 {[%clk 0:01:07]} 29. b3 {[%clk 0:01:26]}  Bf6 {[%clk 0:01:07]} 30. Bg3 {[%clk 0:01:22]}  Rbd8 {[%clk 0:01:06]} 31. Bc7 {[%clk 0:01:20]}  Rd7 {[%clk 0:01:05]} 32. Bb6 {[%clk 0:01:21]}  Rde7 {[%clk 0:01:02]} 33. Rf2 {[%clk 0:01:16]}  Qe6 {[%clk 0:00:46]} 34. Bc5 {[%clk 0:00:50]}  Rd7 {[%clk 0:00:44]} 35. Kf1 {[%clk 0:00:40]}  h6 {[%clk 0:00:43]} 36. g3 {[%clk 0:00:36]}  Qh3+ {[%clk 0:00:42]} 37. Kg1 {[%clk 0:00:35]}  Rf7 {[%clk 0:00:42]} 38. Re1 {[%clk 0:00:30]}  Rxe1+ {[%clk 0:00:35]} 39. Qxe1 {[%clk 0:00:31]}  Kh7 {[%clk 0:00:32]} 40. Re2 {[%clk 0:00:23]}  Qd7 {[%clk 0:00:32]} 41. Qd2 {[%clk 0:00:18]}  Bg5 {[%clk 0:00:31]} 42. f4 {[%clk 0:00:18]}  Bd8 {[%clk 0:00:31]} 43. Qd4 {[%clk 0:00:17]}  Be4 {[%clk 0:00:28]} 44. c4 {[%clk 0:00:16]}  Bf6 {[%clk 0:00:28]} 45. Qd2 {[%clk 0:00:15]}  Qg4 {[%clk 0:00:25]} 46. cxd5 {[%clk 0:00:15]}  cxd5 {[%clk 0:00:26]} 47. Rf2 {[%clk 0:00:14]}  Rc7 {[%clk 0:00:26]} 48. b4 {[%clk 0:00:14]}  a5 {[%clk 0:00:25]} 49. a3 {[%clk 0:00:13]}  axb4 {[%clk 0:00:26]} 50. axb4 {[%clk 0:00:14]}  Rc8 {[%clk 0:00:23]} 51. Qa2 {[%clk 0:00:09]}  Rxc5 {[%clk 0:00:19]} 52. bxc5 {[%clk 0:00:06]}  Qd1+ {[%clk 0:00:17]} 0-1


[Site "https://www.chess.com"]

[Event "Titled Tuesday Blitz January 31 Late 2023"]
[White "Poeta, Caio Medeiros"]
[Black "Szyszylo, Rafal"]
[WhiteFideId "2142660"]
[BlackFideId "1109626"]
[WhiteElo "2088"]
[BlackElo "2091"]
[Result "0-1"]
[Round "04"]
[TimeControl "180+2"]
[Date "2023.01.31"]
[WhiteClock "0:00:40"]
[BlackClock "0:00:14"]

1. d4 {[%clk 0:03:00]}  g6 {[%clk 0:02:59]} 2. c4 {[%clk 0:02:59]}  Nf6 {[%clk 0:02:57]} 3. Nc3 {[%clk 0:02:59]}  d6 {[%clk 0:02:58]} 4. e4 {[%clk 0:02:59]}  Bg7 {[%clk 0:02:58]} 5. f3 {[%clk 0:03:00]}  Nfd7 {[%clk 0:02:56]} 6. Be3 {[%clk 0:02:59]}  e5 {[%clk 0:02:56]} 7. Nge2 {[%clk 0:02:59]}  Bh6 {[%clk 0:02:55]} 8. Bf2 {[%clk 0:02:50]}  O-O {[%clk 0:02:54]} 9. g3 {[%clk 0:02:51]}  Nc6 {[%clk 0:02:49]} 10. Bg2 {[%clk 0:02:50]}  Bg7 {[%clk 0:02:38]} 11. O-O {[%clk 0:02:48]}  Re8 {[%clk 0:02:33]} 12. d5 {[%clk 0:02:46]}  Ne7 {[%clk 0:02:30]} 13. b4 {[%clk 0:02:46]}  a5 {[%clk 0:02:24]} 14. a3 {[%clk 0:02:46]}  b6 {[%clk 0:02:22]} 15. Rc1 {[%clk 0:02:38]}  axb4 {[%clk 0:02:13]} 16. axb4 {[%clk 0:02:39]}  Bh6 {[%clk 0:02:10]} 17. Rc2 {[%clk 0:02:38]}  f5 {[%clk 0:02:09]} 18. c5 {[%clk 0:02:37]}  Nf6 {[%clk 0:01:56]} 19. cxd6 {[%clk 0:02:34]}  cxd6 {[%clk 0:01:56]} 20. Nb5 {[%clk 0:02:30]}  fxe4 {[%clk 0:01:26]} 21. fxe4 {[%clk 0:02:25]}  Rf8 {[%clk 0:01:18]} 22. Nc7 {[%clk 0:02:23]}  Rb8 {[%clk 0:01:17]} 23. h3 {[%clk 0:02:19]}  Rf7 {[%clk 0:00:57]} 24. Nb5 {[%clk 0:02:11]}  Ba6 {[%clk 0:00:55]} 25. Nbc3 {[%clk 0:02:09]}  Bc4 {[%clk 0:00:51]} 26. Rb2 {[%clk 0:02:02]}  b5 {[%clk 0:00:51]} 27. Kh2 {[%clk 0:01:59]}  Nh5 {[%clk 0:00:46]} 28. Ba7 {[%clk 0:01:48]}  Ra8 {[%clk 0:00:45]} 29. Rxf7 {[%clk 0:01:47]}  Kxf7 {[%clk 0:00:46]} 30. Bg1 {[%clk 0:01:44]}  Ng8 {[%clk 0:00:45]} 31. Rb1 {[%clk 0:01:38]}  Kg7 {[%clk 0:00:44]} 32. Ra1 {[%clk 0:01:36]}  Ngf6 {[%clk 0:00:34]} 33. g4 {[%clk 0:01:19]}  Nf4 {[%clk 0:00:32]} 34. Nxf4 {[%clk 0:01:19]}  Bxf4+ {[%clk 0:00:33]} 35. Kh1 {[%clk 0:01:19]}  g5 {[%clk 0:00:29]} 36. Bf1 {[%clk 0:01:04]}  Rxa1 {[%clk 0:00:23]} 37. Qxa1 {[%clk 0:01:03]}  h5 {[%clk 0:00:21]} 38. gxh5 {[%clk 0:01:00]}  Nxh5 {[%clk 0:00:21]} 39. Nxb5 {[%clk 0:00:54]}  Ng3+ {[%clk 0:00:19]} 40. Kg2 {[%clk 0:00:54]}  Bxf1+ {[%clk 0:00:18]} 41. Kf3 {[%clk 0:00:46]}  Qh8 {[%clk 0:00:15]} 42. Qa7+ {[%clk 0:00:47]}  Kg6 {[%clk 0:00:15]} 43. Nxd6 {[%clk 0:00:43]}  Qh5+ {[%clk 0:00:16]} 44. Kf2 {[%clk 0:00:40]}  Qe2# {[%clk 0:00:14]} 0-1


[Site "https://www.chess.com"]

[Event "Titled Tuesday Blitz January 31 Late 2023"]
[White "Bernat, David"]
[Black "Kaplan, Avi Harrison"]
[WhiteFideId "2099225"]
[BlackFideId "30934559"]
[WhiteElo "1862"]
[BlackElo "2146"]
[Result "0-1"]
[Round "04"]
[TimeControl "180+2"]
[Date "2023.01.31"]
[WhiteClock "0:00:04"]
[BlackClock "0:00:04"]

1. c4 {[%clk 0:03:00]}  Nf6 {[%clk 0:03:00]} 2. Nc3 {[%clk 0:03:01]}  g6 {[%clk 0:03:00]} 3. e4 {[%clk 0:03:00]}  d6 {[%clk 0:03:00]} 4. g3 {[%clk 0:03:01]}  Bg7 {[%clk 0:03:00]} 5. Bg2 {[%clk 0:03:02]}  O-O {[%clk 0:03:01]} 6. Nge2 {[%clk 0:03:02]}  c5 {[%clk 0:03:01]} 7. O-O {[%clk 0:03:03]}  Nc6 {[%clk 0:02:58]} 8. d3 {[%clk 0:03:03]}  Bg4 {[%clk 0:02:57]} 9. h3 {[%clk 0:02:59]}  Bxe2 {[%clk 0:02:57]} 10. Nxe2 {[%clk 0:03:00]}  e5 {[%clk 0:02:55]} 11. f4 {[%clk 0:03:00]}  a6 {[%clk 0:02:53]} 12. f5 {[%clk 0:03:00]}  b5 {[%clk 0:02:53]} 13. g4 {[%clk 0:02:55]}  h6 {[%clk 0:02:51]} 14. g5 {[%clk 0:02:53]}  hxg5 {[%clk 0:02:48]} 15. Bxg5 {[%clk 0:02:54]}  Qc7 {[%clk 0:02:45]} 16. Qe1 {[%clk 0:02:50]}  Nh7 {[%clk 0:02:42]} 17. Be3 {[%clk 0:02:44]}  Nd4 {[%clk 0:02:40]} 18. Nc3 {[%clk 0:02:31]}  bxc4 {[%clk 0:02:29]} 19. Nd5 {[%clk 0:02:30]}  Qb7 {[%clk 0:02:28]} 20. f6 {[%clk 0:02:22]}  cxd3 {[%clk 0:02:25]} 21. Qh4 {[%clk 0:01:52]}  Qxb2 {[%clk 0:01:49]} 22. Bh6 {[%clk 0:01:09]}  Ne6 {[%clk 0:01:21]} 23. fxg7 {[%clk 0:01:06]}  Nxg7 {[%clk 0:01:15]} 24. Ne7+ {[%clk 0:00:29]}  Kh8 {[%clk 0:01:14]} 25. Rab1 {[%clk 0:00:28]}  Qxa2 {[%clk 0:01:03]} 26. Rb7 {[%clk 0:00:25]}  Qe6 {[%clk 0:00:59]} 27. Bxg7+ {[%clk 0:00:19]}  Kxg7 {[%clk 0:01:00]} 28. Nd5 {[%clk 0:00:19]}  Qc8 {[%clk 0:00:28]} 29. Re7 {[%clk 0:00:16]}  Rb8 {[%clk 0:00:18]} 30. Qf2 {[%clk 0:00:16]}  Rb7 {[%clk 0:00:18]} 31. Qxf7+ {[%clk 0:00:12]}  Rxf7 {[%clk 0:00:18]} 32. Rfxf7+ {[%clk 0:00:13]}  Kh6 {[%clk 0:00:16]} 33. Rxh7+ {[%clk 0:00:12]}  Kg5 {[%clk 0:00:16]} 34. h4+ {[%clk 0:00:12]}  Kg4 {[%clk 0:00:17]} 35. Rxb7 {[%clk 0:00:11]}  d2 {[%clk 0:00:15]} 36. Rb1 {[%clk 0:00:10]}  c4 {[%clk 0:00:15]} 37. Kh2 {[%clk 0:00:09]}  c3 {[%clk 0:00:13]} 38. Bh3+ {[%clk 0:00:09]}  Kf3 {[%clk 0:00:13]} 39. Bxc8 {[%clk 0:00:10]}  c2 {[%clk 0:00:13]} 40. Rf7+ {[%clk 0:00:08]}  Kxe4 {[%clk 0:00:09]} 41. Nc3+ {[%clk 0:00:07]}  Kd4 {[%clk 0:00:09]} 42. Ne2+ {[%clk 0:00:06]}  Ke3 {[%clk 0:00:09]} 43. Rg1 {[%clk 0:00:06]}  d1=Q {[%clk 0:00:07]} 44. Bxa6 {[%clk 0:00:04]}  Qd5 {[%clk 0:00:04]} 0-1


[Site "https://www.chess.com"]

[Event "Titled Tuesday Blitz January 31 Late 2023"]
[White "Tanenbaum, Zachary"]
[Black "Almedina Ortiz, Edgardo J."]
[WhiteFideId "2060850"]
[BlackFideId "3100197"]
[WhiteElo "2261"]
[BlackElo "2156"]
[Result "1-0"]
[Round "04"]
[TimeControl "180+2"]
[Date "2023.01.31"]
[WhiteClock "0:02:36"]
[BlackClock "0:00:02"]

1. e4 {[%clk 0:03:00]}  e5 {[%clk 0:02:56]} 2. Nf3 {[%clk 0:03:00]}  Nc6 {[%clk 0:02:56]} 3. Bc4 {[%clk 0:03:01]}  Bc5 {[%clk 0:02:56]} 4. c3 {[%clk 0:03:01]}  Nf6 {[%clk 0:02:54]} 5. d4 {[%clk 0:03:02]}  exd4 {[%clk 0:02:54]} 6. b4 {[%clk 0:03:03]}  Bb6 {[%clk 0:02:46]} 7. e5 {[%clk 0:03:03]}  d5 {[%clk 0:02:37]} 8. exf6 {[%clk 0:03:04]}  dxc4 {[%clk 0:02:36]} 9. Qe2+ {[%clk 0:03:04]}  Be6 {[%clk 0:02:28]} 10. b5 {[%clk 0:03:04]}  d3 {[%clk 0:01:58]} 11. Qe4 {[%clk 0:03:04]}  Qxf6 {[%clk 0:01:22]} 12. bxc6 {[%clk 0:03:02]}  O-O {[%clk 0:01:20]} 13. cxb7 {[%clk 0:02:59]}  Rad8 {[%clk 0:01:10]} 14. Bg5 {[%clk 0:02:58]}  d2+ {[%clk 0:00:59]} 15. Nbxd2 {[%clk 0:02:58]}  Qxc3 {[%clk 0:00:58]} 16. O-O {[%clk 0:02:50]}  Rd3 {[%clk 0:00:34]} 17. Rac1 {[%clk 0:02:43]}  Qb2 {[%clk 0:00:21]} 18. Nxc4 {[%clk 0:02:41]}  Bxc4 {[%clk 0:00:17]} 19. Qxc4 {[%clk 0:02:41]}  Ra3 {[%clk 0:00:08]} 20. Rce1 {[%clk 0:02:39]}  Rxa2 {[%clk 0:00:05]} 21. Be3 {[%clk 0:02:36]}  Bxe3 {[%clk 0:00:02]} 22. Rxe3 {[%clk 0:02:36]} 1-0


[Site "https://www.chess.com"]